bitfinex-derivatives/quotes_SOLF0:USTF0_20260312
["timestamp","ask_amount","ask_price","bid_price","bid_amount"]
[1773277391951,4.28237723,86.406,86.351,4.41516507]
[1773277392152,4.28237723,86.369,86.311,4.41516507]
[1773277392451,4.28237723,86.359,86.311,4.41516507]
[1773277393045,4.28237723,86.359,86.277,2.01546347]
[1773277393046,4.28237723,86.374,86.321,4.41516507]
[1773277393657,4.28237723,86.409,86.331,4.41516507]
[1773277393948,10.417,86.392,86.331,4.41516507]
[1773277394550,14.69937723,86.392,86.331,4.41516507]
[1773277395459,4.28237723,86.392,86.331,4.41516507]
[1773277397656,4.28237723,86.389,86.331,4.41516507]
[1773277398259,4.28237723,86.385,86.331,4.41516507]
[1773277398658,4.28237723,86.385,86.316,4.41516507]
[1773277398960,6.25390025,86.39,86.28,6.25390025]
[1773277398961,4.28237723,86.36,86.295,4.41516507]
[1773277400257,14.70337723,86.36,86.295,4.41516507]
[1773277400458,4.70829722,86.389,86.295,4.41516507]
[1773277401466,4.70829722,86.371,86.304,4.37187072]
[1773277402174,4.70829722,86.364,86.304,4.37187072]
[1773277402870,15.12729722,86.375,86.315,4.37187072]
[1773277405477,10.417,86.385,86.325,4.37187072]
[1773277405675,4.70829722,86.389,86.325,4.37187072]
[1773277406974,6.25390025,86.41,86.3,6.25390025]
[1773277406975,4.70829722,86.375,86.31,4.37187072]
[1773277407471,4.70829722,86.375,86.312,4.37187072]
[1773277408476,4.70829722,86.373,86.312,4.37187072]
[1773277409374,15.12729722,86.372,86.312,4.37187072]
[1773277409881,4.70829722,86.371,86.312,4.37187072]
[1773277411579,4.70829722,86.366,86.312,4.37187072]
[1773277413377,4.70829722,86.364,86.26,34.66]
[1773277413574,4.70829722,86.359,86.268,4.37187072]
[1773277413879,54.0,86.363,86.232,4.37187072]
[1773277413880,4.70829722,86.329,86.232,4.37187072]
[1773277414076,4.70829722,86.327,86.257,4.37187072]
[1773277414472,4.70829722,86.327,86.257,14.80487072]
[1773277414671,4.70829722,86.327,86.258,4.37187072]
[1773277415476,4.70829722,86.325,86.258,4.37187072]
[1773277416274,4.70829722,86.32,86.258,4.37187072]
[1773277417372,4.70829722,86.315,86.232,4.37187072]
[1773277417975,4.70829722,86.315,86.23,6.25527151]
[1773277417976,4.70829722,86.308,86.235,4.37187072]
[1773277418675,4.70829722,86.305,86.238,4.37187072]
[1773277419885,4.70829722,86.3,86.238,4.37187072]
[1773277421176,4.70829722,86.3,86.243,4.37187072]
[1773277422079,4.48076281,86.325,86.246,4.43710064]
[1773277422885,4.48076281,86.321,86.248,4.43710064]
[1773277423777,4.48076281,86.318,86.253,4.43710064]
[1773277425385,4.48076281,86.313,86.253,4.43710064]
[1773277425689,4.48076281,86.313,86.257,4.43710064]
[1773277425884,4.48076281,86.339,86.257,4.43710064]
[1773277427486,4.48076281,86.327,86.263,4.43710064]
[1773277428083,4.48076281,86.327,86.268,4.43710064]
[1773277429182,4.48076281,86.327,86.27,4.43710064]
[1773277430784,12.4710695,86.357,86.275,4.5555276]
[1773277430984,12.4710695,86.357,86.291,4.5555276]
[1773277430985,4.44593169,86.357,86.291,4.5555276]
[1773277431781,4.44593169,86.357,86.304,4.5555276]
[1773277431986,4.44593169,86.379,86.289,4.5555276]
[1773277432286,4.44593169,86.377,86.289,4.5555276]
[1773277432586,4.44593169,86.355,86.291,4.5555276]
[1773277433192,4.44593169,86.355,86.295,4.5555276]
[1773277433781,4.44593169,86.352,86.295,4.5555276]
[1773277434191,4.44593169,86.352,86.241,34.66]
[1773277434388,4.44593169,86.308,86.242,4.5555276]
[1773277434792,4.44593169,86.293,86.242,4.5555276]
[1773277434995,4.44593169,86.293,86.179,28.52989562]
[1773277434996,4.44593169,86.293,86.223,4.5555276]
[1773277436486,4.44593169,86.293,86.226,4.5555276]
[1773277436691,4.44593169,86.279,86.202,4.5555276]
[1773277437186,4.44593169,86.259,86.181,4.5555276]
[1773277437688,14.87893169,86.258,86.184,4.5555276]
[1773277437890,4.44593169,86.258,86.184,4.5555276]
[1773277438792,4.44593169,86.309,86.193,4.5555276]
[1773277438994,4.44593169,86.307,86.211,4.5555276]
[1773277439294,6.25527151,86.31,86.211,4.5555276]
[1773277439295,4.44593169,86.305,86.211,4.5555276]
[1773277439692,4.44593169,86.283,86.212,4.5555276]
[1773277440388,4.44593169,86.289,86.172,4.5555276]
[1773277440594,4.44593169,86.289,86.181,4.5555276]
[1773277440892,4.44593169,86.284,86.211,4.5555276]
[1773277441792,4.44593169,86.279,86.211,4.5555276]
[1773277442494,4.44593169,86.263,86.172,4.5555276]
[1773277443492,4.44593169,86.257,86.173,4.5555276]
[1773277444494,4.44593169,86.253,86.173,4.5555276]
[1773277444688,4.44593169,86.253,86.178,4.5555276]
[1773277444891,4.44593169,86.279,86.181,4.5555276]
[1773277445295,4.44593169,86.279,86.161,2.01829808]
[1773277445296,4.44593169,86.279,86.211,4.5555276]
[1773277446292,4.44593169,86.279,86.21,6.25527151]
[1773277446293,10.427,86.304,86.212,4.5555276]
[1773277446485,4.44593169,86.303,86.212,4.5555276]
[1773277446686,4.44593169,86.303,86.215,4.5555276]
[1773277447486,6.25527151,86.31,86.217,4.5555276]
[1773277447487,4.44593169,86.29,86.217,4.5555276]
[1773277448690,4.44593169,86.268,86.217,4.5555276]
[1773277449295,4.44593169,86.28,86.194,4.5555276]
[1773277449494,4.44593169,86.279,86.194,4.5555276]
[1773277450597,4.44593169,86.269,86.196,4.5555276]
[1773277451397,4.44593169,86.262,86.179,4.5555276]
[1773277451599,4.44593169,86.259,86.179,4.5555276]
[1773277451897,14.88093169,86.243,86.18,4.5555276]
[1773277452402,4.44593169,86.242,86.18,4.5555276]
[1773277452597,4.44593169,86.258,86.18,4.5555276]
[1773277452803,4.44593169,86.258,86.181,4.5555276]
[1773277453502,4.44593169,86.258,86.185,4.5555276]
[1773277454098,4.44593169,86.258,86.19,4.5555276]
[1773277454702,4.44593169,86.258,86.198,4.5555276]
[1773277455102,4.44593169,86.274,86.213,4.5555276]
[1773277457103,4.44593169,86.274,86.216,4.5555276]
[1773277457497,4.44593169,86.292,86.216,4.5555276]
[1773277457900,4.44593169,86.292,86.23,4.5555276]
[1773277458705,6.25527151,86.32,86.22,6.25527151]
[1773277458706,4.44593169,86.309,86.234,4.5555276]
[1773277460003,4.44593169,86.309,86.241,4.38186391]
[1773277460502,4.60457571,86.318,86.245,14.81586391]
[1773277461109,4.56305059,86.312,86.248,4.38186391]
[1773277461806,4.56305059,86.312,86.25,4.38186391]
[1773277462614,4.56305059,86.312,86.199,162.406]
[1773277462615,4.56004104,86.332,86.274,4.38186391]
[1773277463009,4.54959587,86.362,86.277,4.38186391]
[1773277463610,4.54959587,86.361,86.279,4.38186391]
[1773277464410,4.54670893,86.358,86.283,4.38186391]
[1773277464610,4.54670893,86.374,86.283,4.38186391]
[1773277465512,4.44028266,86.347,86.283,4.38186391]
[1773277466710,4.43749185,86.344,86.283,4.38186391]
[1773277467520,4.56587165,86.329,86.261,4.38186391]
[1773277468021,4.5630836,86.327,86.261,4.38186391]
[1773277468718,4.5630836,86.324,86.261,4.38186391]
[1773277469322,4.59062237,86.314,86.261,4.38186391]
[1773277473930,4.59062237,86.314,86.25,10.434]
[1773277473931,4.59062237,86.314,86.246,4.38186391]
[1773277474529,4.53157294,86.301,86.246,4.38186391]
[1773277475132,4.43387469,86.299,86.246,4.38186391]
[1773277475331,4.43387469,86.299,86.227,4.38186391]
[1773277476032,14.85936609,86.295,86.231,4.38186391]
[1773277476825,4.42893399,86.292,86.231,4.38186391]
[1773277477132,4.42893399,86.292,86.215,4.38186391]
[1773277478037,4.42893399,86.292,86.217,4.38186391]
[1773277479439,4.42893399,86.292,86.2,6.26372693]
[1773277479440,10.429,86.289,86.225,4.38186391]
[1773277479633,4.52067615,86.288,86.225,4.38186391]
[1773277480137,4.52067615,86.288,86.189,14.56]
[1773277480138,4.52067615,86.288,86.227,4.38186391]
[1773277480539,4.52067615,86.288,86.23,4.38186391]
[1773277481834,4.52067615,86.288,86.232,4.47862716]
[1773277482641,4.52067615,86.288,86.234,4.47862716]
[1773277483638,10.429,86.287,86.234,4.47862716]
[1773277483839,14.91381637,86.287,86.234,4.47862716]
[1773277484040,4.48481637,86.286,86.234,4.47862716]
[1773277484241,4.48481637,86.286,86.214,4.47862716]
[1773277485443,4.48417987,86.282,86.216,4.47862716]
[1773277486338,14.91186973,86.279,86.216,4.47862716]
[1773277486743,4.48186973,86.279,86.221,4.47862716]
[1773277486940,4.47970891,86.299,86.221,4.47862716]
[1773277487847,4.45700035,86.279,86.206,4.47862716]
[1773277489547,4.45700035,86.279,86.156,35.88897081]
[1773277489548,4.43351198,86.259,86.187,4.47862716]
[1773277490446,14.62827592,86.243,86.187,4.47862716]
[1773277491747,4.19327592,86.234,86.143,4.58963107]
[1773277493450,14.63127592,86.212,86.146,4.58963107]
[1773277493753,4.19327592,86.232,86.146,4.58963107]
[1773277494452,4.19327592,86.279,86.171,4.58963107]
[1773277494852,4.19327592,86.279,86.181,4.58963107]
[1773277496055,10.434,86.247,86.191,4.58963107]
[1773277496351,14.2982778,86.247,86.191,4.58963107]
[1773277496753,3.86234772,86.266,86.191,4.58963107]
[1773277497252,3.86234772,86.266,86.181,10.442]
[1773277497447,3.89203739,86.24,86.181,10.442]
[1773277497645,3.89203739,86.24,86.182,4.58963107]
[1773277500451,3.89203739,86.24,86.187,4.58963107]
[1773277500653,3.91422377,86.26,86.187,4.58963107]
[1773277501454,10.434,86.248,86.19,4.58963107]
[1773277501652,3.90223411,86.247,86.19,4.58963107]
[1773277503456,14.31481656,86.246,86.19,4.58963107]
[1773277503656,3.88081656,86.246,86.19,4.58963107]
[1773277503858,3.87904573,86.289,86.19,4.58963107]
[1773277505456,6.26372693,86.29,86.193,4.58963107]
[1773277505457,10.433,86.258,86.193,4.58963107]
[1773277505658,3.90016771,86.257,86.193,4.58963107]
[1773277507259,3.90016771,86.257,86.198,4.58963107]
[1773277507753,10.432,86.268,86.206,4.58963107]
[1773277509455,10.432,86.268,86.212,4.58963107]
[1773277509756,3.90063037,86.273,86.212,4.58963107]
[1773277511362,3.90063037,86.273,86.216,4.58963107]
[1773277512057,3.89554329,86.271,86.2,4.58963107]
[1773277512358,3.89554329,86.269,86.183,4.58963107]
[1773277512554,3.89554329,86.23,86.183,4.58963107]
[1773277513660,3.89417254,86.249,86.183,4.58963107]
[1773277514455,3.88147304,86.248,86.185,4.58963107]
[1773277515355,10.435,86.243,86.185,4.58963107]
[1773277515560,3.88787902,86.242,86.185,4.58963107]
[1773277517460,3.88787902,86.242,86.191,4.58963107]
[1773277517759,3.85777307,86.257,86.191,4.58963107]
[1773277517956,3.85777307,86.257,86.195,10.44]
[1773277518161,3.85777307,86.257,86.196,4.58963107]
[1773277518361,3.84562866,86.287,86.196,4.58963107]
[1773277518660,3.84562866,86.287,86.18,6.26372693]
[1773277518661,3.84562866,86.266,86.2,4.58963107]
[1773277520158,3.8053844,86.261,86.2,4.58963107]
[1773277520756,3.8053844,86.261,86.203,4.3876829]
[1773277521052,3.8252058,86.265,86.203,4.3876829]
[1773277521257,3.8252058,86.265,86.181,4.3876829]
[1773277521958,10.434,86.245,86.187,4.3876829]
[1773277523158,3.80946782,86.256,86.19,4.3876829]
[1773277523856,3.79792756,86.242,86.19,4.3876829]
[1773277524053,3.79792756,86.242,86.174,4.3876829]
[1773277524254,3.79792756,86.242,86.159,4.3876829]
[1773277524457,3.79822402,86.204,86.144,4.3876829]
[1773277526268,3.80345764,86.202,86.144,4.3876829]
[1773277527566,3.61336646,86.2,86.144,4.3876829]
[1773277528159,3.60281491,86.195,86.144,4.3876829]
[1773277529064,3.60281491,86.195,86.122,4.3876829]
[1773277529263,3.60281491,86.195,86.1,28.59878879]
[1773277529264,3.60281491,86.195,86.092,28.59878879]
[1773277529464,6.26372693,86.18,86.086,10.71040644]
[1773277529668,6.28545864,86.2,86.101,10.71040644]
[1773277529970,10.442,86.18,86.102,10.71040644]
[1773277530165,7.99452202,86.198,86.102,10.71040644]
[1773277530366,7.99452202,86.203,86.121,10.71021469]
[1773277530571,7.99452202,86.219,86.121,10.71021469]
[1773277530766,6.28545864,86.2,86.121,10.71021469]
[1773277530966,7.99452202,86.199,86.082,10.64574704]
[1773277531163,14.56,86.232,86.082,10.64574704]
[1773277531164,6.28545864,86.18,86.082,10.64574704]
[1773277532466,10.444,86.163,86.082,10.64574704]
[1773277532773,10.444,86.163,86.083,10.454]
[1773277532971,10.444,86.163,86.084,10.64956052]
[1773277533673,10.446,86.15,86.084,10.64956052]
[1773277533875,10.446,86.15,86.044,28.59878879]
[1773277533876,6.28545864,86.16,86.062,10.64956052]
[1773277534463,10.446,86.151,86.062,10.64956052]
[1773277534767,6.28545864,86.18,86.081,10.64944601]
[1773277535875,10.444,86.165,86.081,10.64944601]
[1773277536075,6.28545864,86.16,86.081,10.64944601]
[1773277537173,10.446,86.151,86.081,10.64944601]
[1773277539176,6.28545864,86.18,86.082,10.454]
[1773277539177,10.444,86.164,86.082,10.454]
[1773277539474,6.28545864,86.18,86.083,10.567536]
[1773277540266,6.28545864,86.16,86.083,10.567536]
[1773277541567,6.28545864,86.14,86.051,10.56842042]
[1773277541878,6.28545864,86.14,86.053,10.56842042]
[1773277542078,6.28545864,86.16,86.053,10.56842042]
[1773277542275,6.28545864,86.14,86.053,10.56842042]
[1773277542576,6.28545864,86.14,86.054,10.56839097]
[1773277542577,10.448,86.132,86.054,10.56839097]
[1773277542978,14.56,86.169,86.054,10.56839097]
[1773277543177,6.28545864,86.15,86.054,10.56839097]
[1773277543979,10.446,86.147,86.067,10.53773437]
[1773277544180,14.56,86.169,86.071,10.53774608]
[1773277544378,6.28545864,86.19,86.071,10.53774608]
[1773277544780,10.444,86.164,86.101,10.452]
[1773277545171,14.56,86.202,86.102,10.58114442]
[1773277545474,201.02604784,86.21,86.102,10.58114442]
[1773277545870,6.28545864,86.19,86.102,10.58114442]
[1773277546070,6.28545864,86.17,86.086,10.58111265]
[1773277546673,10.447,86.145,86.086,10.58111265]
[1773277546870,6.28545864,86.17,86.086,10.58111265]
[1773277547380,6.28545864,86.15,86.07,10.64741434]
[1773277547883,6.28545864,86.15,86.032,10.64741434]
[1773277548078,6.28545864,86.15,86.058,10.6473186]
[1773277548479,6.28545864,86.17,86.058,10.6473186]
[1773277548678,10.446,86.147,86.073,10.6473186]
[1773277549979,10.445,86.157,86.091,10.57222762]
[1773277550380,10.444,86.168,86.104,10.57218211]
[1773277550581,6.28545864,86.19,86.104,10.57218211]
[1773277551084,10.442,86.182,86.116,10.57313342]
[1773277551382,6.28545864,86.19,86.116,10.57313342]
[1773277551582,10.443,86.175,86.116,10.57313342]
[1773277552083,10.441,86.187,86.119,10.57311132]
[1773277552276,14.56,86.207,86.119,10.57311132]
[1773277552778,14.56,86.207,86.062,294.0]
[1773277552779,6.28545864,86.17,86.102,10.57311132]
[1773277552977,6.28545864,86.17,86.061,10.57312413]
[1773277553479,10.445,86.159,86.087,10.57312413]
[1773277554377,10.445,86.159,86.093,10.57310251]
[1773277555083,10.446,86.149,86.093,10.57310251]
[1773277556182,6.28545864,86.17,86.094,10.56552165]
[1773277556680,10.445,86.16,86.094,10.56552165]
[1773277558083,10.445,86.16,86.08,6.28545864]
[1773277558084,10.443,86.17,86.106,10.56547988]
[1773277559488,10.443,86.17,86.107,10.451]
[1773277559682,10.443,86.17,86.108,10.55245083]
[1773277560084,10.443,86.17,86.114,10.55244811]
[1773277560784,10.442,86.18,86.116,10.55244811]
[1773277561385,10.441,86.192,86.129,10.55079096]
[1773277561584,201.02604784,86.21,86.101,10.55079096]
[1773277561786,10.442,86.182,86.113,10.55079096]
[1773277562388,17.10661114,86.209,86.113,10.55079096]
[1773277562590,6.28545864,86.19,86.113,10.55079096]
[1773277562886,6.28545864,86.19,86.096,10.55078968]
[1773277563888,10.446,86.153,86.097,10.452]
[1773277564089,6.28545864,86.19,86.098,10.54261538]
[1773277565494,10.444,86.163,86.1,10.47253653]
[1773277566083,10.444,86.163,86.102,10.47259762]
[1773277566994,10.445,86.154,86.102,10.47259762]
[1773277574605,10.444,86.164,86.102,10.47259762]
[1773277574806,7.89972016,86.163,86.102,10.47259762]
[1773277575107,7.89972016,86.162,86.102,10.47259762]
[1773277575308,10.65739335,86.186,86.102,10.47259762]
[1773277575507,17.29437674,86.185,86.104,10.47988517]
[1773277575809,17.29437674,86.184,86.104,10.47988517]
[1773277576107,17.29437674,86.183,86.104,10.47988517]
[1773277576307,10.444,86.17,86.11,10.47993476]
[1773277577407,10.444,86.17,86.116,10.47543668]
[1773277578409,10.442,86.182,86.119,10.47548831]
[1773277578607,8.00502749,86.181,86.119,10.47548831]
[1773277578808,8.00502749,86.18,86.119,10.47548831]
[1773277579007,8.00502749,86.179,86.119,10.47548831]
[1773277579205,6.28545864,86.19,86.119,10.47548831]
[1773277579406,10.443,86.174,86.119,10.47548831]
[1773277579911,10.442,86.183,86.121,10.4715714]
[1773277580114,8.00476659,86.182,86.121,10.4715714]
[1773277580410,8.00476659,86.181,86.121,10.4715714]
[1773277580607,8.00476659,86.18,86.121,10.4715714]
[1773277580808,9.39590825,86.204,86.121,10.4715714]
[1773277581108,17.40118212,86.203,86.121,10.4715714]
[1773277581312,10.443,86.171,86.121,10.4715714]
[1773277581507,6.28545864,86.19,86.121,10.4715714]
[1773277581804,10.443,86.171,86.121,10.4715714]
[1773277583409,10.445,86.161,86.121,10.4715714]
[1773277583609,6.28545864,86.17,86.098,10.46591912]
[1773277583815,17.11553792,86.169,86.098,10.46591912]
[1773277584010,6.28545864,86.17,86.098,10.46591912]
[1773277584011,8.00864164,86.168,86.098,10.46591912]
[1773277584213,8.00864164,86.167,86.098,10.46591912]
[1773277584413,10.444,86.163,86.098,10.46591912]
[1773277586311,10.444,86.163,86.099,10.452]
[1773277586616,10.444,86.163,86.1,10.46176642]
[1773277587014,8.01009067,86.162,86.1,10.46176642]
[1773277587211,8.01009067,86.161,86.1,10.46176642]
[1773277587412,8.01009067,86.16,86.1,10.46176642]
[1773277587712,8.01009067,86.159,86.1,10.46176642]
[1773277588014,8.01009067,86.158,86.1,10.46176642]
[1773277588215,10.446,86.149,86.1,10.46176642]
[1773277588513,6.28545864,86.17,86.1,10.46176642]
[1773277588514,9.10969026,86.164,86.1,10.46176642]
[1773277588712,10.446,86.147,86.1,10.46176642]
[1773277589314,10.445,86.157,86.1,10.46176642]
[1773277589510,8.01920875,86.156,86.1,10.46176642]
[1773277589714,8.01920875,86.155,86.1,10.46176642]
[1773277589910,8.01920875,86.154,86.086,10.43030514]
[1773277590117,6.28545864,86.15,86.086,10.43030514]
[1773277590307,17.13409836,86.149,86.086,10.43030514]
[1773277590512,10.448,86.131,86.086,10.43030514]
[1773277593212,10.447,86.141,86.086,10.43030514]
[1773277593411,8.01481699,86.14,86.05,6.29099994]
[1773277593609,9.11362905,86.157,86.05,6.29099994]
[1773277593813,8.01634101,86.156,86.05,6.29099994]
[1773277594013,8.01634101,86.155,86.05,6.29099994]
[1773277594217,17.12997006,86.154,86.05,6.29099994]
[1773277594421,8.01634101,86.153,86.05,6.29099994]
[1773277594613,8.01634101,86.152,86.05,6.29099994]
[1773277594815,18.46234101,86.151,86.084,10.454]
[1773277595015,10.446,86.151,86.084,10.454]
[1773277595317,10.446,86.151,86.085,5.21830287]
[1773277595718,14.58,86.158,86.101,5.21830287]
[1773277596020,2.51528401,86.16,86.101,5.21830287]
[1773277596614,10.445,86.159,86.101,5.21830287]
[1773277596814,2.51528401,86.15,86.101,5.21830287]
[1773277597020,10.445,86.159,86.101,5.21830287]
[1773277600521,10.446,86.15,86.101,5.21830287]
[1773277601729,10.445,86.161,86.101,5.21830287]
[1773277602217,10.445,86.161,86.103,5.21258719]
[1773277602825,10.445,86.161,86.105,5.21258719]
[1773277603027,10.443,86.175,86.105,5.21258719]
[1773277603222,8.02169473,86.174,86.105,5.21258719]
[1773277603528,9.24777741,86.183,86.105,5.21258719]
[1773277603726,17.26927952,86.182,86.105,5.21258719]
[1773277603930,8.02150211,86.181,86.105,5.21258719]
[1773277604226,8.02150211,86.18,86.121,5.20491349]
[1773277604426,8.02150211,86.179,86.121,5.20491349]
[1773277604623,14.58,86.195,86.121,5.20491349]
[1773277604624,8.02150211,86.178,86.121,5.20491349]
[1773277604832,10.444,86.167,86.121,5.20491349]
[1773277606330,14.58,86.195,86.121,5.20491349]
[1773277606331,10.443,86.177,86.121,5.20491349]
[1773277606526,8.01866363,86.176,86.121,5.20491349]
[1773277606728,8.01866363,86.175,86.121,5.20491349]
[1773277606930,10.443,86.177,86.121,5.20491349]
[1773277607232,10.441,86.187,86.121,5.20491349]
[1773277607535,8.11734466,86.186,86.107,5.22379472]
[1773277607730,17.36097098,86.185,86.107,5.22379472]
[1773277608032,17.36097098,86.184,86.107,5.22379472]
[1773277608326,8.11734466,86.183,86.107,5.22379472]
[1773277608524,10.443,86.173,86.109,5.22384906]
[1773277608733,9.24212493,86.199,86.109,5.22384906]
[1773277608926,17.35686562,86.198,86.109,5.22384906]
[1773277609126,17.35686562,86.197,86.109,5.22384906]
[1773277609330,17.35686562,86.196,86.109,5.22384906]
[1773277609530,17.35686562,86.195,86.109,5.22384906]
[1773277609728,17.35686562,86.194,86.109,5.22384906]
[1773277609928,17.35686562,86.193,86.109,5.22384906]
[1773277610226,8.11474069,86.192,86.109,5.22384906]
[1773277610530,6.28722038,86.2,86.1,6.28722038]
[1773277610531,6.28722038,86.2,86.126,5.20701218]
[1773277610730,8.11391116,86.199,86.126,5.20701218]
[1773277610928,8.11391116,86.198,86.126,5.20701218]
[1773277611232,8.11391116,86.197,86.126,5.20701218]
[1773277611435,10.441,86.193,86.129,5.20241281]
[1773277615936,10.441,86.193,86.131,5.22050409]
[1773277616334,10.44,86.203,86.131,5.22050409]
[1773277616546,10.44,86.203,86.135,5.22055474]
[1773277617038,10.441,86.194,86.135,5.22055474]
[1773277617537,2.51270906,86.19,86.135,5.22055474]
[1773277617937,2.51270906,86.18,86.135,5.22055474]
[1773277618147,42.74616253,86.206,86.102,14.58]
[1773277618148,2.51270906,86.17,86.121,5.25052102]
[1773277618632,2.51270906,86.17,86.077,28.88853604]
[1773277618633,3.18063856,86.188,86.13,2.51270906]
[1773277618833,2.51270906,86.19,86.13,2.51270906]
[1773277619633,10.44,86.195,86.14,2.51270906]
[1773277619837,10.44,86.195,86.141,10.447]
[1773277620030,3.16872162,86.188,86.103,14.58]
[1773277620236,3.16872162,86.179,86.12,2.51270906]
[1773277620734,3.16872162,86.174,86.122,3.82501413]
[1773277621240,2.51270906,86.2,86.141,3.82501413]
[1773277621438,3.17123427,86.199,86.141,3.82501413]
[1773277622340,10.44,86.196,86.141,3.82501413]
[1773277623336,3.1752865,86.179,86.124,3.82501413]
[1773277623535,3.1752865,86.169,86.124,3.82501413]
[1773277624444,13.6192865,86.169,86.124,3.82501413]
[1773277625646,3.1607355,86.159,86.109,3.82501413]
[1773277625941,2.51270906,86.15,86.109,3.82501413]
[1773277627537,10.445,86.156,86.109,3.82501413]
[1773277628239,3.14195426,86.155,86.109,3.82501413]
[1773277628437,2.51270906,86.15,86.109,3.82501413]
[1773277628638,3.14195426,86.155,86.109,3.82501413]
[1773277628944,2.51270906,86.16,86.109,3.82501413]
[1773277630243,3.1389997,86.169,86.109,3.82501413]
[1773277630451,3.1389997,86.169,86.111,3.82501413]
[1773277631040,2.51270906,86.18,86.121,3.82501413]
[1773277631249,3.03707445,86.184,86.131,3.82501413]
[1773277633148,3.06140699,86.179,86.131,3.82501413]
[1773277635946,3.06140699,86.179,86.132,3.82501413]
[1773277637151,2.51270906,86.19,86.132,3.82501413]
[1773277637354,5.56625995,86.19,86.132,3.82501413]
[1773277637550,3.05355089,86.189,86.132,3.82501413]
[1773277638349,3.05355089,86.189,86.134,3.82501413]
[1773277639751,3.05355089,86.189,86.136,3.82501413]
[1773277642161,3.05355089,86.189,86.139,4.17329442]
[1773277642657,2.51270906,86.2,86.139,4.17329442]
[1773277643249,5.56146565,86.2,86.139,4.17329442]
[1773277643451,3.04875659,86.199,86.141,4.17329442]
[1773277643653,13.48875659,86.198,86.141,4.17329442]
[1773277643855,3.04875659,86.197,86.141,4.17329442]
[1773277644055,2.51270906,86.19,86.141,4.17329442]
[1773277645566,3.04875659,86.197,86.141,4.17329442]
[1773277648070,3.04875659,86.197,86.144,4.17329442]
[1773277648872,2.51270906,86.19,86.144,4.17329442]
[1773277650269,3.1351051,86.189,86.144,4.17329442]
[1773277650467,2.51270906,86.18,86.144,4.17329442]
[1773277650661,5.64781416,86.18,86.144,4.17329442]
[1773277651672,10.441,86.187,86.144,4.17329442]
[1773277652673,10.442,86.184,86.144,4.17329442]
[1773277653065,2.51312335,86.19,86.144,4.17329442]
[1773277653265,3.13046155,86.199,86.144,4.17329442]
[1773277653671,2.51312335,86.19,86.144,4.17329442]
[1773277654068,3.12795651,86.179,86.131,4.17329442]
[1773277657378,3.12795651,86.179,86.134,4.17329442]
[1773277657775,5.64429497,86.19,86.134,4.17329442]
[1773277658079,3.13117162,86.189,86.134,4.17329442]
[1773277658876,2.51312335,86.18,86.134,4.17329442]
[1773277659575,3.12675803,86.159,86.104,4.17329442]
[1773277659782,2.51312335,86.17,86.111,4.17329442]
[1773277659983,3.12441775,86.168,86.111,4.17329442]
[1773277660181,10.72192751,86.209,86.111,4.17329442]
[1773277660182,2.51312335,86.15,86.111,4.17329442]
[1773277661278,5.60904095,86.15,86.111,4.17329442]
[1773277661880,2.51312335,86.16,86.111,4.17329442]
[1773277662078,3.09355597,86.159,86.111,4.17329442]
[1773277662581,3.09355597,86.172,86.121,4.09158979]
[1773277664087,2.51312335,86.17,86.121,4.09158979]
[1773277664486,3.09355597,86.172,86.123,4.09158979]
[1773277665689,2.51312335,86.16,86.123,4.09158979]
[1773277667789,3.0934521,86.169,86.123,4.09158979]
[1773277671190,2.51312335,86.16,86.111,3.83660104]
[1773277672988,10.445,86.157,86.111,3.83660104]
[1773277673793,3.13533321,86.165,86.111,3.83660104]
[1773277674091,3.12923781,86.178,86.121,3.83660104]
[1773277675286,3.12923781,86.178,86.13,2.51312335]
[1773277675587,3.12923781,86.178,86.131,3.83660104]
[1773277675784,3.12831942,86.192,86.141,3.83660104]
[1773277676182,2.51312335,86.19,86.141,3.83660104]
[1773277676386,3.12640962,86.209,86.155,3.83660104]
[1773277676590,10.438,86.219,86.161,3.83660104]
[1773277676790,3.12640962,86.209,86.161,3.83660104]
[1773277681997,3.06934204,86.207,86.161,3.83660104]
[1773277684193,204.34131221,86.241,86.148,3.83660104]
[1773277684194,3.06047548,86.199,86.148,3.83660104]
[1773277685300,3.06047548,86.199,86.104,28.8030087]
[1773277685301,3.04126205,86.229,86.171,3.83660104]
[1773277685500,2.51312335,86.21,86.171,3.83660104]
[1773277685897,3.04126205,86.219,86.171,3.83660104]
[1773277686996,2.51312335,86.23,86.171,3.83660104]
[1773277687304,2.96554954,86.232,86.181,3.83660104]
[1773277688099,2.51312335,86.24,86.181,3.83660104]
[1773277688495,9.35852886,86.256,86.139,14.58]
[1773277688496,10.433,86.256,86.201,3.83660104]
[1773277688802,8.07446612,86.255,86.201,3.83660104]
[1773277689206,2.96391452,86.259,86.201,3.83660104]
[1773277689509,8.07433796,86.258,86.201,3.83660104]